bitfinex/quotes_BTCUSD_20250119
["timestamp","ask_amount","ask_price","bid_price","bid_amount"]
[1737293500807,0.70090006,104860.0,104850.0,0.471874]
[1737293501255,0.70090006,104860.0,104850.0,0.48151049]
[1737293502183,0.70090006,104860.0,104850.0,0.50047466]
[1737293503673,0.70090006,104860.0,104850.0,0.50667466]
[1737293503908,0.70090006,104860.0,104850.0,0.60591547]
[1737293503909,0.00090006,104860.0,104850.0,0.60591547]
[1737293504288,0.00090006,104860.0,104850.0,0.6154597]
[1737293504700,0.00090006,104860.0,104850.0,0.7654597]
[1737293505063,0.21481115,104870.0,104860.0,0.48187024]
[1737293505266,0.15921279,104880.0,104870.0,0.621856]
[1737293505473,0.14393179,104880.0,104870.0,0.72159273]
[1737293506089,0.07619594,104880.0,104870.0,0.72159273]
[1737293506299,0.00089986,104890.0,104880.0,0.1]
[1737293506506,0.00089986,104890.0,104880.0,0.42034097]
[1737293506706,0.00089986,104890.0,104880.0,0.41938781]
[1737293507297,0.00089986,104890.0,104880.0,0.33513204]
[1737293507503,0.00089986,104890.0,104880.0,0.43513204]
[1737293507676,0.70089986,104890.0,104880.0,0.43513204]
[1737293507876,0.70089986,104890.0,104880.0,0.42558781]
[1737293508084,0.70089986,104890.0,104880.0,0.42414781]
[1737293509268,0.70089986,104890.0,104880.0,0.118347]
[1737293510210,0.70089986,104890.0,104880.0,0.095347]
[1737293511033,0.80014067,104890.0,104880.0,0.095347]
[1737293511274,0.80014067,104890.0,104880.0,0.245347]
[1737293511493,0.80018067,104890.0,104880.0,0.245347]
[1737293513569,0.80018067,104890.0,104880.0,0.268347]
[1737293515436,0.87738067,104890.0,104880.0,0.268347]
[1737293518088,0.87738067,104890.0,104880.0,0.31644272]
[1737293520908,0.80018067,104890.0,104880.0,0.31644272]
[1737293526054,0.70093986,104890.0,104880.0,0.31644272]
[1737293527443,0.70093986,104890.0,104880.0,0.39454272]
[1737293530606,0.70093986,104890.0,104880.0,0.31644272]
[1737293530985,0.70093986,104890.0,104880.0,0.31687112]
[1737293536421,0.00093986,104890.0,104880.0,0.39257112]
[1737293539418,0.70093986,104890.0,104880.0,0.39877112]
[1737293539859,0.70093986,104890.0,104880.0,0.32307112]
[1737293540172,1.1218751,104890.0,104880.0,0.32307112]
[1737293540372,1.1218751,104890.0,104880.0,0.095347]
[1737293540573,0.9896299,104890.0,104880.0,0.095347]
[1737293541771,1.14312134,104890.0,104880.0,0.095347]
[1737293542480,1.24236215,104890.0,104870.0,0.476748]
[1737293542718,0.09924081,104880.0,104870.0,0.095348]
[1737293542966,1.92365979,104880.0,104870.0,0.095348]
[1737293543676,0.87684081,104880.0,104870.0,0.095348]
[1737293546895,0.97218881,104880.0,104860.0,0.48679924]
[1737293547102,1.35407267,104880.0,104860.0,0.29608124]
[1737293547333,1.26804981,104870.0,104860.0,0.01000524]
[1737293547543,2.06729062,104870.0,104860.0,0.01000524]
[1737293548304,1.30890545,104870.0,104860.0,0.01000524]
[1737293549087,1.01999681,104870.0,104860.0,0.01000524]
[1737293549295,0.92464081,104870.0,104860.0,0.01000524]
[1737293550098,0.92464081,104870.0,104860.0,0.10537024]
[1737293551136,1.01999681,104870.0,104860.0,0.01000524]
[1737293551763,1.57764703,104870.0,104860.0,0.01000524]
[1737293551973,1.57764703,104870.0,104850.0,0.46815678]
[1737293552143,0.09924081,104860.0,104850.0,0.27741978]
[1737293552406,0.79924081,104860.0,104850.0,0.27741978]
[1737293552966,0.79924081,104860.0,104850.0,0.25831062]
[1737293553549,0.79924081,104860.0,104840.0,0.33163333]
[1737293553963,1.08784991,104860.0,104850.0,0.286104]
[1737293555007,0.79924081,104860.0,104850.0,0.286104]
[1737293557144,1.05567687,104860.0,104850.0,0.286104]
[1737293558795,0.79924081,104860.0,104850.0,0.286104]
[1737293559016,0.80880491,104860.0,104850.0,0.286104]
[1737293560447,1.0651455,104860.0,104850.0,0.286104]
[1737293561089,1.0651455,104860.0,104840.0,0.18163333]
[1737293561328,0.172375,104850.0,104830.0,0.28648908]
[1737293561548,0.79924081,104840.0,104830.0,0.09571508]
[1737293561752,0.79924081,104840.0,104830.0,0.09572208]
[1737293562129,0.7,104840.0,104830.0,0.09572208]
[1737293562357,1.01535236,104840.0,104830.0,0.09572208]
[1737293562977,1.01535236,104840.0,104830.0,0.09581618]
[1737293563127,0.21352287,104840.0,104830.0,0.09581618]
[1737293563344,0.21352287,104840.0,104830.0,0.17206997]
[1737293563762,0.21352287,104840.0,104830.0,0.21986997]
[1737293563919,0.25634059,104840.0,104830.0,0.40969518]
[1737293564122,0.25634059,104840.0,104830.0,0.10267041]
[1737293564355,0.25634059,104840.0,104830.0,0.10362418]
[1737293564559,0.25634059,104840.0,104830.0,0.10267041]
[1737293564751,0.17074868,104840.0,104830.0,0.19173277]
[1737293564961,0.17074868,104840.0,104830.0,0.28712477]
[1737293565166,0.17074868,104840.0,104830.0,0.286171]
[1737293566255,0.29880079,104840.0,104830.0,0.286171]
[1737293567045,0.29880079,104840.0,104830.0,0.2865995]
[1737293567400,0.29880079,104840.0,104830.0,0.4365995]
[1737293567606,0.38416886,104840.0,104830.0,0.4365995]
[1737293568379,0.25610408,104840.0,104830.0,0.4365995]
[1737293568691,0.95610408,104840.0,104830.0,0.4365995]
[1737293569078,0.91338317,104840.0,104830.0,0.4365995]
[1737293571213,0.91338317,104840.0,104830.0,0.78584031]
[1737293571434,0.91338317,104840.0,104830.0,0.86374031]
[1737293571675,0.91338317,104840.0,104830.0,0.88674031]
[1737293572561,0.7,104840.0,104830.0,0.88674031]
[1737293573780,0.21338317,104850.0,104840.0,0.173]
[1737293573927,0.21338317,104850.0,104840.0,0.36762381]
[1737293575389,0.38413185,104850.0,104840.0,0.36762381]
[1737293576352,0.69934229,104850.0,104840.0,0.36762381]
[1737293576784,0.69934229,104850.0,104840.0,0.37382381]
[1737293578108,0.51226987,104850.0,104840.0,0.37382381]
[1737293578270,1.21226987,104850.0,104840.0,0.37382381]
[1737293579616,1.08506787,104850.0,104840.0,0.37382381]
[1737293579826,0.38506787,104850.0,104840.0,0.37382381]
[1737293580944,0.38506787,104850.0,104840.0,0.47382381]
[1737293581566,0.38506787,104850.0,104840.0,0.51952381]
[1737293581905,0.30876787,104850.0,104840.0,0.74742381]
[1737293582145,0.25154287,104850.0,104840.0,0.74742381]
[1737293582348,0.21339287,104850.0,104840.0,0.74742381]
[1737293582691,0.21454756,104850.0,104840.0,0.74742381]
[1737293583690,0.00089901,104850.0,104840.0,0.74742381]
[1737293584111,0.00089901,104850.0,104840.0,0.76658206]
[1737293584544,0.00089901,104850.0,104840.0,0.76038206]
[1737293584735,0.00089901,104850.0,104840.0,0.76658206]
[1737293584969,0.00089901,104850.0,104840.0,0.61658206]
[1737293585179,0.00089901,104850.0,104840.0,0.76658206]
[1737293586006,0.08635843,104850.0,104840.0,0.36998206]
[1737293586187,0.08635843,104850.0,104840.0,0.21998206]
[1737293586393,0.08635843,104850.0,104840.0,0.36998206]
[1737293586600,0.08635843,104850.0,104840.0,0.51998206]
[1737293586601,0.21454756,104850.0,104840.0,0.51998206]
[1737293587390,0.12908814,104850.0,104840.0,0.54298206]
[1737293588180,0.12908814,104850.0,104840.0,0.64298206]
[1737293589917,0.21470709,104850.0,104840.0,0.64298206]
[1737293591016,0.21470709,104850.0,104840.0,0.64341016]
[1737293592650,0.08651796,104850.0,104840.0,0.64341016]
[1737293593697,0.21470709,104850.0,104840.0,0.64341016]
[1737293596289,0.11933209,104850.0,104840.0,0.78173829]
[1737293596505,0.06134062,104850.0,104840.0,0.82793829]
[1737293596961,0.06134062,104850.0,104840.0,0.84777364]
[1737293597229,0.02319462,104850.0,104840.0,0.84777364]
[1737293597461,0.25724045,104870.0,104860.0,0.621565]
[1737293597462,0.17213337,104870.0,104860.0,0.621565]
[1737293597674,0.15739908,104870.0,104860.0,0.72080581]
[1737293598504,0.25728045,104890.0,104880.0,0.245347]
[1737293598505,0.00093986,104890.0,104880.0,0.245347]
[1737293598723,0.07603986,104890.0,104880.0,0.251547]
[1737293599809,0.07653578,104890.0,104880.0,0.251547]
[1737293599954,0.77653578,104890.0,104880.0,0.251547]
[1737293600852,0.77653578,104890.0,104880.0,0.308787]
[1737293601104,0.77653578,104890.0,104880.0,0.251547]
[1737293604256,0.08588611,104890.0,104880.0,0.251547]
[1737293605081,0.1243,104880.0,104870.0,0.286044]
[1737293606075,0.1243,104880.0,104870.0,0.436044]
[1737293606279,0.38064059,104880.0,104870.0,0.436044]
[1737293607101,0.7659274,104880.0,104860.0,0.286077]
[1737293607333,0.7659274,104880.0,104850.0,0.476844]
[1737293607334,0.46401181,104870.0,104850.0,0.476844]
[1737293607511,0.0787,104860.0,104850.0,0.286111]
[1737293607735,0.0787,104860.0,104850.0,0.436111]
[1737293607942,0.1262,104860.0,104850.0,0.436111]
[1737293608323,0.38254059,104860.0,104850.0,0.436111]
[1737293609010,0.38254059,104860.0,104850.0,0.0985042]
[1737293609011,0.4817814,104860.0,104850.0,0.0985042]
[1737293609816,0.4817814,104860.0,104850.0,0.2485042]
[1737293610426,0.51404991,104860.0,104850.0,0.2485042]
[1737293610670,0.51404991,104860.0,104850.0,0.095374]
[1737293611239,0.22544081,104860.0,104850.0,0.095374]
[1737293612394,0.48158435,104860.0,104850.0,0.095374]
[1737293618370,0.38234354,104860.0,104850.0,0.095374]
[1737293618581,0.33484354,104860.0,104850.0,0.09632768]
[1737293618788,0.25671412,104860.0,104850.0,0.095374]
[1737293619472,0.25671412,104860.0,104850.0,0.09632762]
[1737293619884,0.25671412,104860.0,104850.0,0.095374]
[1737293620322,0.25671412,104860.0,104850.0,0.245374]
[1737293620527,0.25671412,104860.0,104850.0,0.34461481]
[1737293620736,0.38517356,104860.0,104850.0,0.34461481]
[1737293621597,0.59914448,104860.0,104850.0,0.34461481]
[1737293622706,0.38515917,104860.0,104850.0,0.34461481]
[1737293623334,0.38515917,104860.0,104850.0,0.44461481]
[1737293625416,0.28979417,104860.0,104850.0,0.67781481]
[1737293625623,0.21397092,104860.0,104850.0,0.72911481]
[1737293625816,0.29070737,104870.0,104860.0,0.395365]
[1737293626059,0.27163637,104870.0,104860.0,0.72290581]
[1737293626288,0.27163637,104870.0,104860.0,0.75002337]
[1737293626503,0.1736313,104870.0,104860.0,0.75002337]
[1737293626707,0.00143578,104890.0,104880.0,0.520447]
[1737293626913,0.00143578,104890.0,104880.0,0.72588781]
[1737293627117,0.00143578,104890.0,104880.0,0.75300537]
[1737293628184,7.8e-07,104890.0,104560.0,6.34175359]
[1737293628386,0.5461,104880.0,104800.0,0.3]
[1737293628599,0.5461,104880.0,104870.0,0.095356]
[1737293628801,0.54645,104880.0,104870.0,0.095356]
[1737293629001,0.54645,104880.0,104860.0,0.476791]
[1737293629174,0.54645,104880.0,104860.0,0.482991]
[1737293629410,0.27029678,104870.0,104860.0,0.101558]
[1737293629612,0.58585002,104870.0,104860.0,0.095358]
[1737293630237,0.60343222,104870.0,104860.0,0.095358]
[1737293630438,0.28787898,104870.0,104860.0,0.15]
[1737293630856,0.28787898,104870.0,104860.0,0.245365]
[1737293631063,0.0175822,104870.0,104860.0,0.15]
[1737293631884,0.0175822,104870.0,104860.0,0.24756657]
[1737293632919,0.0175822,104870.0,104860.0,0.245365]
[1737293633379,0.01637636,104870.0,104860.0,0.245365]
[1737293633779,0.23004767,104870.0,104860.0,0.245365]
[1737293635291,0.22941607,104870.0,104860.0,0.245365]
[1737293635666,0.22941607,104870.0,104860.0,0.095365]
[1737293638857,0.22941607,104870.0,104860.0,0.09631846]
[1737293639073,0.22836203,104870.0,104860.0,0.00095346]
[1737293639276,0.01469072,104870.0,104860.0,0.095365]
[1737293639497,0.01469072,104870.0,104860.0,0.09631842]
[1737293639712,0.01469072,104870.0,104860.0,0.095365]
[1737293640805,0.22831228,104870.0,104860.0,0.095365]
[1737293641410,0.01469072,104870.0,104860.0,0.095365]
[1737293642484,0.01469072,104870.0,104850.0,0.47567522]
[1737293642687,0.01504072,104870.0,104850.0,0.67028703]
[1737293642869,0.01504072,104870.0,104860.0,0.245365]
[1737293645222,0.01504072,104870.0,104850.0,0.50064296]
[1737293645425,0.19259772,104870.0,104850.0,0.01992915]
[1737293645628,0.19259772,104870.0,104850.0,0.000428]
[1737293645629,0.28144081,104860.0,104850.0,0.000428]
[1737293645847,0.76806132,104860.0,104850.0,0.000428]
[1737293646046,0.86342632,104860.0,104850.0,0.000428]
[1737293646279,1.41342632,104860.0,104850.0,0.000428]
[1737293646465,0.87675581,104860.0,104850.0,0.000428]
[1737293647003,1.60713945,104860.0,104850.0,0.000428]
[1737293647206,0.878,104840.0,104820.0,0.00095374]
[1737293647409,0.954,104840.0,104810.0,0.4959431]
[1737293647651,0.95435,104840.0,104810.0,0.59518391]
[1737293648267,0.17090546,104820.0,104810.0,0.55436291]
[1737293648534,0.17090546,104820.0,104810.0,0.55485883]
[1737293649303,0.17090546,104820.0,104810.0,0.63785883]
[1737293649502,0.21358226,104820.0,104810.0,0.63785883]
[1737293651287,0.21358226,104820.0,104810.0,0.63828693]
[1737293651949,0.21358226,104820.0,104810.0,0.31078693]
[1737293652150,0.21358226,104820.0,104810.0,0.40618993]
[1737293652375,0.21358226,104820.0,104810.0,0.59701093]
[1737293653995,0.21358226,104820.0,104810.0,0.61648303]
[1737293655547,0.0854329,104820.0,104810.0,0.61648303]
[1737293656258,0.21358226,104820.0,104810.0,0.63948303]
[1737293656459,0.21358226,104820.0,104810.0,0.64883726]
[1737293656663,0.21358226,104820.0,104810.0,1.14913911]
[1737293657800,0.00035,104840.0,104810.0,1.14913911]
[1737293657801,0.21393226,104840.0,104830.0,0.118392]
[1737293657994,0.21393226,104840.0,104830.0,0.21858647]
[1737293658137,0.21393226,104840.0,104830.0,0.22383281]
[1737293660241,0.51303665,104840.0,104830.0,0.22383281]
[1737293660658,0.878,104830.0,104820.0,0.196987]
[1737293660963,0.878,104830.0,104820.0,0.39258253]
[1737293661166,0.878,104830.0,104820.0,0.39162881]
[1737293662060,0.9634378,104830.0,104820.0,0.39162881]
[1737293662861,0.9634378,104830.0,104820.0,0.56462881]
[1737293663300,0.0854378,104830.0,104820.0,0.56462881]
[1737293665009,0.0854378,104830.0,104820.0,0.55842881]
[1737293666891,0.21393716,104840.0,104830.0,0.268392]
[1737293667067,0.21393716,104840.0,104830.0,0.36763281]
[1737293668700,0.21393716,104840.0,104830.0,0.39109923]
[1737293669088,0.21393716,104840.0,104830.0,0.36763281]
[1737293670109,0.0857878,104840.0,104830.0,0.36763281]
[1737293670655,0.21393716,104840.0,104830.0,0.36763281]
[1737293670858,0.21393716,104840.0,104830.0,0.38359102]
[1737293671476,0.21393716,104840.0,104830.0,0.46679102]
[1737293672420,0.21393716,104840.0,104830.0,0.38359102]
[1737293673847,0.21393716,104840.0,104830.0,0.4256068]
[1737293674050,0.51303665,104840.0,104830.0,0.4256068]
[1737293674292,0.51393587,104840.0,104830.0,0.4256068]
[1737293674668,0.51393587,104840.0,104830.0,0.9669778]
[1737293674872,0.51393587,104840.0,104830.0,1.07344065]
[1737293675066,0.08676804,104840.0,104830.0,1.07344065]
[1737293677129,0.00124922,104840.0,104830.0,1.07344065]
[1737293677895,0.00124922,104840.0,104830.0,1.0501778]
[1737293678501,0.00124922,104840.0,104830.0,1.0439778]
[1737293678794,0.00124922,104840.0,104830.0,0.8011314]
[1737293679359,0.00124922,104840.0,104830.0,0.5929444]
[1737293679603,0.00124922,104840.0,104830.0,1.1400814]
[1737293680623,0.00124922,104840.0,104830.0,0.3964844]
[1737293680845,0.0769,104830.0,104810.0,0.01087454]
[1737293681179,0.1255,104820.0,104810.0,0.01087454]
[1737293681385,0.22509081,104820.0,104810.0,0.00092402]
[1737293681784,0.75450694,104820.0,104810.0,0.00092402]
[1737293682395,0.48144901,104820.0,104810.0,0.00092402]
[1737293683207,0.51369991,104820.0,104810.0,0.00092402]
[1737293683605,0.51369991,104820.0,104790.0,0.16982399]
[1737293683972,0.66687587,104820.0,104790.0,0.1699728]
[1737293684357,0.66687587,104820.0,104790.0,0.2653988]
[1737293684526,0.38469516,104800.0,104790.0,0.2653988]
[1737293684733,0.38469516,104800.0,104790.0,0.2644448]
[1737293685111,0.38469516,104800.0,104790.0,0.1690188]
[1737293685339,0.38469516,104800.0,104790.0,0.2644468]
[1737293685510,0.38469516,104800.0,104790.0,0.1690188]
[1737293685709,0.38469516,104800.0,104790.0,0.2644468]
[1737293686151,0.51284523,104800.0,104790.0,0.2644468]
[1737293687093,1.4241,104790.0,104770.0,0.21390861]
[1737293687203,1.4241,104790.0,104780.0,0.19563294]
[1737293687407,1.501,104790.0,104780.0,0.38553881]
[1737293689877,0.89264144,104830.0,104820.0,22.59315704]
[1737293690084,0.70570425,104830.0,104820.0,22.59315704]
[1737293690289,0.44924081,104830.0,104820.0,22.59315704]
[1737293690500,0.45859694,104830.0,104820.0,22.59315704]
[1737293690688,0.56030865,104830.0,104820.0,22.59315704]
[1737293692715,0.46491665,104830.0,104820.0,22.59315704]
[1737293692927,0.58781665,104830.0,104820.0,22.59315704]
[1737293693335,0.43320865,104830.0,104820.0,22.59315704]
[1737293693937,0.58320865,104830.0,104820.0,22.26565704]
[1737293697494,0.79639108,104830.0,104820.0,22.26565704]
[1737293697736,0.79729051,104830.0,104820.0,22.26565704]
[1737293698216,0.5026577,104830.0,104820.0,22.26565704]
[1737293698556,0.3526577,104830.0,104820.0,22.26565704]
[1737293699091,0.3099658,104830.0,104820.0,22.26565704]
[1737293700128,0.43783193,104830.0,104820.0,22.26565704]
[1737293700744,0.52314823,104830.0,104820.0,22.26565704]
[1737293701310,0.30537399,104860.0,104850.0,20.65205415]
[1737293701541,0.5608148,104860.0,104850.0,20.65205415]
[1737293701945,0.4046148,104860.0,104850.0,20.65205415]
[1737293702173,0.40088596,104860.0,104850.0,20.65205415]
[1737293702509,0.58103466,104860.0,104850.0,20.65205415]
[1737293703084,0.57483466,104860.0,104850.0,20.32455415]
[1737293703278,0.68103466,104860.0,104850.0,20.19645415]
[1737293703437,0.68103466,104860.0,104850.0,19.97115415]
[1737293704091,0.58103466,104860.0,104850.0,19.97115415]
[1737293704300,0.59153466,104860.0,104850.0,19.97115415]
[1737293704750,0.58533466,104860.0,104850.0,19.97115415]
[1737293704885,0.59153466,104860.0,104850.0,19.97115415]
[1737293705290,0.58533466,104860.0,104850.0,19.97115415]
[1737293705495,0.59153466,104860.0,104850.0,19.97115415]
[1737293706666,1.28533466,104860.0,104850.0,19.97115415]
[1737293706882,1.29153466,104860.0,104850.0,19.97115415]
[1737293708545,1.50459894,104860.0,104850.0,19.97115415]
[1737293708746,1.20799994,104860.0,104850.0,19.97115415]
[1737293708987,1.20179994,104860.0,104850.0,19.97115415]
[1737293709191,1.05179994,104860.0,104850.0,19.97115415]
[1737293709401,1.00918228,104860.0,104850.0,19.97115415]
[1737293709596,0.97918228,104860.0,104850.0,19.97115415]
[1737293709802,0.87994147,104860.0,104850.0,19.97115415]
[1737293710003,0.87994147,104860.0,104850.0,19.97158225]
[1737293710211,0.88084048,104860.0,104850.0,19.97158225]
[1737293710414,0.83822811,104860.0,104850.0,19.97158225]
[1737293711274,0.92345178,104860.0,104850.0,19.97158225]
[1737293714428,1.22173901,104860.0,104850.0,19.97158225]
[1737293714635,1.22688533,104860.0,104850.0,19.97158225]
[1737293714832,0.52688533,104860.0,104850.0,20.05328225]
[1737293714987,0.52173901,104860.0,104850.0,20.05328225]
[1737293715761,1.22173901,104860.0,104850.0,20.05328225]
[1737293716610,1.22173901,104860.0,104850.0,20.10108225]
[1737293717673,1.22741659,104860.0,104850.0,20.10108225]
[1737293718558,0.19066,104900.0,104890.0,17.36446952]
[1737293718719,0.39188473,104900.0,104890.0,17.36446952]
[1737293718939,0.54188473,104900.0,104890.0,17.36446952]
[1737293719380,0.59128241,104900.0,104890.0,17.36446952]
[1737293720109,0.58512241,104900.0,104890.0,17.36446952]
[1737293720317,0.59128241,104900.0,104890.0,17.36446952]
[1737293720561,0.75067702,104900.0,104890.0,17.36446952]
[1737293722601,0.74451702,104900.0,104890.0,17.03696952]
[1737293722770,0.75157583,104900.0,104890.0,17.03696952]
[1737293728779,0.64958587,105000.0,104990.0,9.42752162]
[1737293728979,1.84603669,105000.0,104990.0,5.16660337]
[1737293729226,2.20252895,105000.0,104990.0,3.99937567]
[1737293729405,2.30302895,105000.0,104990.0,3.00535651]
[1737293729604,2.00302895,105000.0,104990.0,2.63908105]
[1737293729806,2.06804614,105000.0,104990.0,2.12999725]
[1737293730006,1.61179016,105000.0,104990.0,1.684559]
[1737293730203,1.61179016,105000.0,104990.0,1.41696794]
[1737293730204,2.09971522,105000.0,104990.0,1.41696794]
[1737293730469,2.09355522,105000.0,104990.0,1.13080161]
[1737293730605,2.07281603,105000.0,104990.0,1.13080161]
[1737293730946,2.76665603,105000.0,104990.0,0.74934643]
[1737293731182,2.09236746,105000.0,104990.0,0.46322533]
[1737293731338,2.09236746,105000.0,104990.0,0.2726321]
[1737293731339,2.1157137,105000.0,104990.0,0.2726321]
[1737293731726,1.62778864,105000.0,104990.0,0.2726321]
[1737293732155,1.77778864,105000.0,104990.0,0.1773871]
[1737293732365,1.74488617,105000.0,104990.0,0.1773871]
[1737293732713,1.75104617,105000.0,104990.0,0.1773871]
[1737293733031,1.75104617,105000.0,104990.0,0.1583381]
[1737293733227,1.75104617,105000.0,104990.0,0.1011911]
[1737293733487,1.75104617,105000.0,104990.0,0.0821421]
[1737293733691,1.652491,105000.0,104990.0,0.0821421]
[1737293733856,1.850089,105000.0,104990.0,0.0821421]
[1737293734067,1.792829,105000.0,104990.0,0.0059461]
[1737293734243,1.76948276,105000.0,104990.0,1e-07]
[1737293734452,0.095295,104940.0,104920.0,0.0821]
[1737293734656,0.095301,104930.0,104920.0,0.09483]
[1737293734856,0.09942128,104930.0,104920.0,0.09483]
[1737293735237,0.00412028,104930.0,104920.0,0.09483]
[1737293735645,0.00426905,104930.0,104920.0,0.09483]
[1737293737910,0.095301,104930.0,104920.0,0.09483]
[1737293738112,0.09935966,104930.0,104920.0,0.09483]
[1737293740153,0.09935966,104930.0,104920.0,0.11358525]
[1737293741833,0.00405866,104930.0,104920.0,0.11358525]
[1737293745301,0.00405866,104930.0,104920.0,0.10085525]
[1737293745496,0.09935966,104930.0,104920.0,0.10085525]
[1737293745890,0.00405866,104930.0,104920.0,0.10085525]
[1737293746746,0.09935966,104930.0,104920.0,0.10085525]
[1737293746949,0.00405866,104930.0,104920.0,0.10085525]
[1737293747153,0.00405866,104930.0,104920.0,0.10128265]
[1737293747508,0.09935966,104930.0,104920.0,0.10128265]
[1737293748351,0.00405866,104930.0,104920.0,0.10128265]
[1737293751990,0.34860047,104930.0,104920.0,0.01918265]
[1737293752236,0.34860047,104930.0,104920.0,0.0004274]
[1737293752419,0.095337,104890.0,104880.0,0.0004272]
[1737293752581,0.35432809,104890.0,104880.0,0.0004272]
[1737293752997,0.35432809,104890.0,104860.0,0.38254446]
[1737293753198,0.19459681,104870.0,104860.0,0.40150007]
[1737293753486,0.19849363,104870.0,104860.0,0.40150007]
[1737293753687,0.19849363,104870.0,104860.0,0.01945153]
[1737293753926,0.19849363,104870.0,104860.0,0.02625949]
[1737293754550,0.19849363,104870.0,104860.0,0.01945153]
[1737293755356,0.60442323,104870.0,104860.0,0.01945153]
[1737293756692,0.81774112,104870.0,104860.0,0.01945153]
[1737293757320,0.82746371,104870.0,104860.0,0.01945153]
[1737293757879,0.57153411,104870.0,104860.0,0.01945153]
[1737293758809,0.57153411,104870.0,104860.0,0.01987913]
[1737293758966,0.74211287,104870.0,104860.0,0.01987913]
[1737293761483,0.77211287,104870.0,104860.0,0.01987913]
[1737293764022,0.89998922,104870.0,104860.0,0.01987913]
[1737293764222,0.90614922,104870.0,104860.0,0.02672985]
[1737293764656,0.90614922,104870.0,104860.0,0.01987913]
[1737293765951,0.89998922,104870.0,104860.0,0.01987913]
[1737293766157,0.90614922,104870.0,104860.0,0.01987913]
[1737293766913,0.65030582,104870.0,104860.0,0.01987913]
[1737293767126,0.286102,104860.0,104830.0,0.2252]
[1737293767336,0.09924081,104850.0,104830.0,0.2252]
[1737293767775,0.00422106,104840.0,104830.0,0.2252]
[1737293770109,0.00422106,104840.0,104830.0,0.24435951]
[1737293770441,0.00422106,104840.0,104830.0,0.39435951]
[1737293770640,0.70185732,104870.0,104850.0,0.1238]
[1737293770786,0.48305985,104870.0,104850.0,0.2238]
[1737293770991,0.57841585,104870.0,104850.0,0.2238]
[1737293771191,0.48305985,104870.0,104850.0,0.2238]
[1737293771603,0.03,104860.0,104850.0,0.2238]
[1737293772006,0.57841685,104870.0,104850.0,0.2238]
[1737293772250,0.19509302,104870.0,104850.0,0.2238]
[1737293772426,0.09973602,104870.0,104850.0,0.2238]
[1737293772993,0.19509202,104870.0,104850.0,0.2238]
[1737293773123,0.09973602,104870.0,104850.0,0.2238]
[1737293773526,0.19509202,104870.0,104850.0,0.2238]
[1737293774105,0.19509302,104870.0,104850.0,0.2238]
[1737293774322,0.19460581,104860.0,104850.0,0.1238]
[1737293776073,0.19460581,104860.0,104850.0,0.121735]
[1737293776600,0.22460581,104860.0,104850.0,0.121735]
[1737293777801,0.22460581,104860.0,104850.0,0.14100494]
[1737293778415,0.22862503,104860.0,104850.0,0.14100494]
[1737293778573,0.23811782,104860.0,104850.0,0.14100494]
[1737293782122,0.14275282,104860.0,104850.0,0.14100494]
[1737293782434,0.23811782,104860.0,104850.0,0.14100494]
[1737293783887,0.23811782,104860.0,104850.0,0.14143294]
[1737293784294,0.23901663,104860.0,104850.0,0.14143294]
[1737293786078,0.14365163,104860.0,104850.0,0.14143294]
[1737293786794,0.23901663,104860.0,104850.0,0.14143294]
[1737293786958,0.14365163,104860.0,104850.0,0.14143294]
[1737293787367,0.2288347,104860.0,104850.0,0.14143294]
[1737293788823,0.14365163,104860.0,104850.0,0.14143294]
[1737293790916,0.23901663,104860.0,104850.0,0.14143294]
[1737293791165,0.14365163,104860.0,104850.0,0.14143294]
[1737293791398,0.2288347,104860.0,104850.0,0.14143294]
[1737293791593,0.3241997,104860.0,104850.0,0.14143294]
[1737293792461,0.45197431,104860.0,104850.0,0.14143294]
[1737293792667,0.35660931,104860.0,104850.0,0.14143294]
[1737293793791,0.24787571,104860.0,104850.0,0.24143294]
[1737293793935,0.41824186,104860.0,104850.0,0.24143294]
[1737293794574,0.39614072,104860.0,104850.0,0.24143294]
[1737293795184,0.09799996,104860.0,104850.0,0.24143294]
[1737293795805,0.09799996,104860.0,104850.0,0.14143294]
[1737293795806,0.19724077,104860.0,104850.0,0.14143294]
[1737293796917,0.6754508,104890.0,104860.0,0.0774]
[1737293796918,0.45608196,104890.0,104860.0,0.0774]
[1737293797120,0.09924081,104880.0,104860.0,0.0774]
[1737293798224,0.19458781,104880.0,104860.0,0.0774]
[1737293798436,0.09924081,104880.0,104860.0,0.0774]
[1737293799394,0.09924081,104880.0,104870.0,0.0489]
[1737293799628,0.09924081,104880.0,104870.0,0.1303]
[1737293800850,0.19458781,104880.0,104870.0,0.1303]
[1737293801252,0.19458781,104880.0,104870.0,0.14896252]
[1737293802582,0.19458781,104880.0,104870.0,0.10006252]
[1737293802781,0.34458781,104880.0,104870.0,0.01866252]
[1737293802999,0.24924081,104880.0,104850.0,0.130728]
[1737293803222,0.095365,104860.0,104850.0,0.1438008]
[1737293803429,0.19460581,104860.0,104850.0,0.1438008]
[1737293803625,0.09924081,104860.0,104850.0,0.1438008]
[1737293804381,0.19460581,104860.0,104850.0,0.1438008]
[1737293804650,0.41439773,104860.0,104850.0,0.1438008]
[1737293805409,0.41439773,104860.0,104850.0,0.16302845]
[1737293805890,0.58583283,104860.0,104850.0,0.16302845]
[1737293807996,0.58673164,104860.0,104850.0,0.16302845]
[1737293808532,0.49136664,104860.0,104850.0,0.16302845]
[1737293808730,0.58673164,104860.0,104850.0,0.16302845]
[1737293809140,0.45815606,104860.0,104850.0,0.16302845]
[1737293809971,0.75456724,104860.0,104850.0,0.16302845]
[1737293810675,0.76410202,104860.0,104850.0,0.16302845]
[1737293811116,0.46769084,104860.0,104850.0,0.16302845]
[1737293812368,0.46769084,104860.0,104850.0,0.10105565]
[1737293813010,0.61769084,104860.0,104850.0,0.01965565]
[1737293814944,0.67982789,104860.0,104850.0,0.01965565]
[1737293816854,0.52982789,104860.0,104850.0,0.01965565]
[1737293818653,0.49759918,104860.0,104850.0,0.01965565]
[1737293818825,0.49759918,104860.0,104850.0,0.02938122]
[1737293820640,0.40223418,104860.0,104850.0,0.15618122]
[1737293820909,0.29345859,104860.0,104850.0,0.25618122]
[1737293821117,0.21344916,104860.0,104850.0,0.54645565]
[1737293821327,0.1807519,104860.0,104850.0,0.54645565]
[1737293821525,0.9847029,104860.0,104850.0,0.54645565]
[1737293821962,0.9847029,104860.0,104850.0,0.29645565]
[1737293822163,1.09728699,104860.0,104850.0,0.29645565]
[1737293822359,1.2918928,104860.0,104850.0,0.14645565]
[1737293822812,0.4138928,104860.0,104850.0,0.14645565]
[1737293823099,0.4138928,104860.0,104850.0,0.09885565]
[1737293823612,0.28538225,104860.0,104850.0,0.09885565]
[1737293824179,0.28538225,104860.0,104850.0,0.01965565]
[1737293824380,0.41389281,104860.0,104850.0,0.01965565]
[1737293825680,0.19970855,104860.0,104850.0,0.01965565]
[1737293825919,0.44658341,104860.0,104850.0,0.000428]
[1737293826172,0.34970855,104860.0,104850.0,0.000428]